bitfinex/quotes_ETHUSD_20250630
["timestamp","ask_amount","ask_price","bid_price","bid_amount"]
[1751293166118,0.7913,2461.1,2460.1,24.11037541]
[1751293166331,0.8203,2460.3,2460.1,4.06487541]
[1751293166532,15.92652334,2461.0,2460.1,4.06487541]
[1751293166715,0.8203,2460.6,2460.1,4.06487541]
[1751293167114,0.7555,2460.9,2460.1,4.06487541]
[1751293168440,0.7555,2460.9,2460.1,11.23987541]
[1751293168735,4.06388043,2460.8,2460.1,11.23887541]
[1751293168938,4.81913046,2460.9,2460.1,11.23887541]
[1751293169129,0.7555,2460.9,2460.1,4.06487541]
[1751293169328,0.7854,2460.4,2460.1,11.23787541]
[1751293169942,0.7854,2460.4,2460.1,4.06487541]
[1751293170237,0.7854,2460.4,2459.8,0.02]
[1751293170423,0.7854,2460.4,2459.9,4.06505275]
[1751293170619,4.84979185,2460.4,2459.9,4.06512935]
[1751293170941,0.7613,2460.1,2459.9,4.0652059]
[1751293171130,0.7613,2460.1,2460.0,4.06504065]
[1751293171449,0.7613,2460.1,2459.8,0.02]
[1751293171740,5.31077049,2460.1,2459.8,0.02]
[1751293172109,0.7669,2459.9,2459.8,0.02]
[1751293172640,5.3821059,2459.9,2459.8,0.02]
[1751293172852,1.3169,2459.9,2459.8,0.02]
[1751293174850,5.3821059,2459.9,2459.8,0.02]
[1751293175146,6.37715344,2459.9,2459.8,0.02]
[1751293175326,2.31194754,2459.9,2459.8,0.02]
[1751293175529,1.3169,2459.9,2459.8,0.02]
[1751293179268,0.7669,2459.9,2459.8,4.08537116]
[1751293179855,0.8338,2460.2,2460.0,4.06498421]
[1751293180038,1.037,2460.2,2460.0,4.06498421]
[1751293180538,1.037,2460.2,2459.9,4.06512323]
[1751293180754,2.83488655,2460.2,2459.8,4.28850639]
[1751293181477,0.01,2460.1,2459.8,0.2232]
[1751293181774,0.01,2460.1,2460.0,4.06504065]
[1751293182865,0.01,2460.1,2459.8,0.2232]
[1751293183948,0.01,2460.1,2459.8,0.02]
[1751293183949,0.7532,2459.9,2459.8,0.02]
[1751293184155,1.23601418,2459.9,2459.8,0.02]
[1751293184353,0.7532,2459.9,2459.8,0.02]
[1751293185276,1.5057,2459.9,2459.8,0.02]
[1751293185846,0.9557,2459.9,2459.8,0.02]
[1751293186475,5.5709059,2459.9,2459.8,0.02]
[1751293187377,23.98896386,2459.9,2459.8,0.02]
[1751293187542,36.79536826,2459.9,2459.8,0.02]
[1751293189181,27.5043103,2459.9,2459.8,0.02]
[1751293189582,18.3773103,2459.9,2459.8,0.02]
[1751293189759,0.9557,2459.9,2459.8,0.02]
[1751293190097,0.7525,2459.9,2459.8,4.08537116]
[1751293191172,0.7525,2459.9,2459.8,0.02]
[1751293191373,0.9557,2459.9,2459.8,4.08537116]
[1751293191677,7.106,2460.0,2459.9,4.0652059]
[1751293192084,2.2342,2460.1,2459.8,0.02]
[1751293192085,9.3402,2460.1,2459.8,0.02]
[1751293192255,9.67341392,2460.1,2459.8,0.02]
[1751293192453,0.54641392,2460.1,2459.8,0.02]
[1751293192680,7.65241392,2460.1,2459.8,0.02]
[1751293192878,4.61514823,2460.0,2459.8,0.02]
[1751293193075,1.97995622,2459.9,2459.8,0.02]
[1751293193773,1.98995622,2459.9,2459.8,0.02]
[1751293194104,1.43995622,2459.9,2459.8,0.02]
[1751293194258,0.01,2459.9,2459.8,4.08537116]
[1751293195569,0.01,2459.9,2459.8,8.84537116]
[1751293195775,0.01,2459.9,2459.8,18.84537116]
[1751293196688,0.01,2459.9,2459.8,19.67757116]
[1751293198494,0.01,2460.1,2460.0,8.81504065]
[1751293198670,0.01,2460.1,2460.0,26.71124065]
[1751293198875,0.01,2460.1,2460.0,26.91444065]
[1751293200258,0.01,2460.1,2460.0,19.80944065]
[1751293200487,0.01,2460.1,2460.0,28.93444065]
[1751293200682,0.01,2460.1,2460.0,19.80944065]
[1751293200880,0.01,2460.1,2460.0,26.91344065]
[1751293203080,0.01,2460.1,2460.0,57.21215265]
[1751293203283,0.01,2460.1,2460.0,38.90874665]
[1751293203467,0.01,2460.1,2460.0,36.91344065]
[1751293204292,0.01,2460.9,2460.8,4.06371911]
[1751293204483,0.01,2460.9,2460.8,23.99221911]
[1751293204678,0.01,2460.9,2460.8,36.12760211]
[1751293204975,0.01,2460.9,2460.8,36.88393965]
[1751293205375,0.01,2460.9,2460.8,36.06354511]
[1751293205701,0.01,2460.9,2460.8,36.46364511]
[1751293206132,0.01,2460.9,2460.8,27.55283311]
[1751293206473,0.01,2460.9,2460.8,27.00283311]
[1751293206718,0.01,2460.9,2460.8,27.90121911]
[1751293207475,0.01,2460.9,2460.8,26.76231911]
[1751293208277,0.01,2460.9,2460.8,23.99221911]
[1751293208480,0.01,2460.9,2460.8,14.86921911]
[1751293208934,0.01,2460.9,2460.8,23.96621911]
[1751293211198,0.01,2460.9,2460.8,14.86921911]
[1751293211398,0.01,2460.9,2460.8,23.96521911]
[1751293212902,0.01,2460.9,2460.8,8.81371911]
[1751293213121,0.01,2460.9,2460.8,14.06371911]
[1751293213499,0.01,2460.9,2460.8,4.06371911]
[1751293213997,0.01,2460.9,2460.7,4.0637837]
[1751293214194,0.01,2460.9,2460.8,4.06371911]
[1751293216096,4.88891911,2460.8,2460.7,0.2024]
[1751293216302,0.2024,2460.7,2460.4,4.06436316]
[1751293216502,0.2024,2460.7,2460.3,4.26758843]
[1751293216740,0.2024,2460.7,2460.3,4.26767224]
[1751293216918,0.2024,2460.7,2460.5,4.06418249]
[1751293217346,0.2024,2460.7,2460.3,0.2032]
[1751293217724,0.2024,2460.7,2460.3,4.26760066]
[1751293217953,0.71253443,2460.7,2460.4,4.0643794]
[1751293218151,0.71253443,2460.7,2460.5,4.06420975]
[1751293218325,0.2024,2460.7,2460.5,4.06420975]
[1751293218524,0.2024,2460.7,2460.4,4.06436196]
[1751293218942,0.2024,2460.7,2460.5,4.06420925]
[1751293219137,0.2024,2460.7,2460.6,4.06404941]
[1751293219343,0.8252,2460.8,2460.6,4.06404941]
[1751293219344,0.8252,2460.8,2460.7,4.06388426]
[1751293219547,0.8252,2460.8,2460.1,10.0]
[1751293219548,0.8252,2460.8,2460.5,4.26734876]
[1751293219744,0.8252,2460.8,2460.5,4.2672961]
[1751293219961,1.390314,2460.8,2460.5,0.2032]
[1751293220252,1.390314,2460.8,2460.1,10.0]
[1751293220253,0.2024,2460.7,2460.3,0.2032]
[1751293220514,0.2024,2460.7,2460.1,10.0]
[1751293220515,4.61418141,2460.6,2460.1,4.06479863]
[1751293220622,0.9786,2460.5,2460.1,8.81479863]
[1751293220831,5.04285108,2460.5,2460.1,8.81479863]
[1751293221025,0.9786,2460.5,2460.2,4.06469692]
[1751293221376,0.9786,2460.5,2460.1,4.75]
[1751293221667,0.9786,2460.5,2460.2,4.06461773]
[1751293222154,0.9786,2460.5,2460.1,4.75]
[1751293222455,0.9786,2460.5,2460.1,8.81472895]
[1751293222658,1.53787116,2460.5,2460.1,8.81480715]
[1751293222966,5.60209881,2460.5,2460.1,4.75]
[1751293223347,1.53787116,2460.5,2460.2,4.06464056]
[1751293223669,0.55,2460.4,2460.1,4.75]
[1751293223833,0.55,2460.4,2459.9,0.02]
[1751293223834,4.86364497,2460.3,2459.9,0.02]
[1751293224038,1.3491,2460.0,2459.9,0.02]
[1751293224248,0.7991,2460.0,2459.9,4.0852059]
[1751293224434,1.0023,2460.0,2459.9,4.0852059]
[1751293225064,0.7991,2460.0,2459.9,4.0852059]
[1751293225358,0.7991,2460.0,2459.9,4.2884059]
[1751293226029,0.2032,2460.3,2460.2,4.06471018]
[1751293226757,0.9977,2460.3,2460.2,4.06471018]
[1751293228362,0.9977,2460.3,2460.1,4.06474938]
[1751293228564,1.70359213,2460.3,2460.0,4.06491845]
[1751293228754,1.70359213,2460.3,2460.1,4.06486005]
[1751293228931,1.70359213,2460.3,2460.2,4.06471018]
[1751293228932,0.9977,2460.3,2460.2,4.06471018]
[1751293229332,0.9977,2460.3,2460.1,4.06472759]
[1751293229964,0.9977,2460.3,2460.2,4.06471018]
[1751293230167,0.9977,2460.3,2460.1,4.06475377]
[1751293230938,0.9977,2460.3,2460.2,4.06471018]
[1751293234162,0.9977,2460.3,2460.0,4.0]
[1751293234472,0.9977,2460.3,2460.1,4.06481196]
[1751293234876,0.9977,2460.3,2460.0,8.06494765]
[1751293235079,1.50390142,2460.3,2460.0,4.0]
[1751293235275,1.50390142,2460.3,2460.0,8.06495853]
[1751293235463,1.50390142,2460.3,2460.0,4.0]
[1751293236293,1.50390142,2460.3,2460.0,8.06503678]
[1751293236793,0.55682913,2460.2,2460.0,4.0]
[1751293238572,4.62155314,2460.2,2460.0,4.0]
[1751293239163,4.61487541,2460.1,2460.0,4.0]
[1751293239367,0.55,2460.1,2460.0,4.0]
[1751293239658,12.51837541,2460.1,2460.0,4.0]
[1751293239887,24.28299445,2460.1,2460.0,4.0]
[1751293242284,15.42124065,2460.0,2459.8,0.02]
[1751293242485,28.72646386,2459.9,2459.8,0.02]
[1751293242801,29.0366918,2459.9,2459.8,0.02]
[1751293243874,14.6165284,2459.1,2459.0,0.02]
[1751293244071,23.7015284,2459.1,2459.0,0.02]
[1751293244321,35.80108636,2459.1,2459.0,0.02]
[1751293248114,15.4069554,2458.6,2458.5,0.02]
[1751293248305,33.81001336,2458.6,2458.5,0.02]
[1751293248513,37.61805369,2458.6,2458.5,0.02]
[1751293248696,15.42638274,2458.1,2457.9,0.01]
[1751293248896,24.50954825,2458.0,2457.9,0.01]
[1751293249087,22.67125796,2457.7,2457.6,0.02]
[1751293249289,18.4492,2457.7,2457.6,0.02]
[1751293249608,22.28712,2457.7,2457.6,0.02]
[1751293249975,26.35596485,2457.7,2457.6,0.02]
[1751293250181,5.62111041,2457.6,2457.5,0.01]
[1751293250380,16.93416837,2457.6,2457.5,0.01]
[1751293250631,20.94749261,2457.6,2457.5,0.01]
[1751293251590,30.94749261,2457.6,2457.5,0.01]
[1751293252513,26.8784822,2457.6,2457.5,0.01]
[1751293252713,35.9614822,2457.6,2457.5,0.01]
[1751293253300,40.03049261,2457.6,2457.5,0.01]
[1751293253484,35.9614822,2457.6,2457.5,0.01]
[1751293253916,26.8784822,2457.6,2457.5,0.01]
[1751293254218,40.03249261,2457.6,2457.5,0.01]
[1751293255794,35.9634822,2457.6,2457.5,0.01]
[1751293256121,40.03249261,2457.6,2457.5,0.01]
[1751293258024,35.9634822,2457.6,2457.5,0.01]
[1751293258229,40.03249261,2457.6,2457.5,0.01]
[1751293258922,70.03249261,2457.6,2457.5,0.01]
[1751293259431,15.42827279,2457.2,2457.1,0.01]
[1751293259628,33.83133075,2457.2,2457.1,0.01]
[1751293259846,4.07033539,2456.8,2456.7,0.2178843]
[1751293260010,4.62066677,2456.6,2456.5,0.01]
[1751293260196,24.54876584,2456.6,2456.5,0.01]
[1751293261122,1.3541,2456.1,2455.4,0.8027]
[1751293261427,0.55,2455.9,2455.6,4.07223434]
[1751293261596,0.55,2455.7,2455.6,4.07223434]
[1751293261803,7.64,2455.7,2455.6,4.07223434]
[1751293262313,0.2032,2455.6,2455.3,4.85867089]
[1751293262513,7.2932,2455.5,2455.4,4.072537]
[1751293262709,0.55,2455.4,2455.0,0.2032]
[1751293263019,11.86305796,2455.8,2455.5,4.08233447]
[1751293263020,0.55,2455.8,2455.5,4.08233447]
[1751293263333,7.089,2455.7,2455.5,4.08238865]
[1751293263732,7.089,2455.7,2455.5,0.01]
[1751293263902,0.55,2455.6,2455.5,0.01]
[1751293264096,0.55,2455.6,2455.5,4.08249032]
[1751293264518,7.089,2455.7,2455.5,4.08249032]
[1751293264519,7.089,2455.7,2455.6,4.07232448]
[1751293264730,7.09,2455.7,2455.5,4.08243592]
[1751293264912,7.09,2455.7,2455.6,4.07232448]
[1751293265107,0.2032,2455.8,2455.7,4.07215865]
[1751293265333,1.995,2456.0,2455.9,4.07182702]
[1751293265522,0.55,2455.8,2455.5,0.2132]
[1751293265831,7.09,2455.7,2455.6,4.07224376]
[1751293266045,7.09,2455.7,2455.6,4.07232448]
[1751293266200,7.089,2455.7,2455.6,4.07232448]
[1751293266843,0.2032,2455.8,2455.7,4.07215865]
[1751293267148,7.2922,2455.8,2455.7,4.07215865]
[1751293268901,0.2032,2455.8,2455.7,4.07215865]
[1751293269328,0.2032,2455.8,2455.7,4.83185865]
[1751293270136,7.2912,2455.8,2455.5,0.01]
[1751293270301,0.2032,2455.6,2455.5,0.01]
[1751293270502,0.2032,2455.6,2455.5,4.08249032]
[1751293271804,7.087,2456.2,2456.1,4.07149546]
[1751293272129,0.2032,2456.3,2456.2,4.82352969]
[1751293272314,6.44271603,2457.5,2457.2,4.06956191]
[1751293272315,1.986,2457.5,2457.2,4.06956191]
[1751293272518,7.087,2457.4,2457.3,4.06950718]
[1751293273039,1.986,2457.5,2456.3,4.07116394]
[1751293273040,7.087,2457.5,2457.4,4.06934158]
[1751293273404,7.9943,2457.5,2457.3,4.06941884]
[1751293273831,7.9943,2457.5,2457.3,4.06950146]
[1751293274036,7.086,2457.4,2457.3,4.06950146]
[1751293274535,2.8933,2457.5,2456.9,0.827]
[1751293274740,1.986,2457.5,2457.4,4.06934158]
[1751293274939,9.072,2457.5,2457.4,4.06934158]
[1751293275141,9.092,2457.5,2457.1,4.06974993]
[1751293275327,9.092,2457.5,2457.3,4.06938404]
[1751293275516,9.092,2457.5,2456.9,0.827]
[1751293275517,9.092,2457.5,2457.2,4.06962194]
[1751293275722,9.092,2457.5,2457.3,4.06949801]
[1751293275940,10.0012,2457.5,2457.0,4.07000407]
[1751293276250,0.55,2457.4,2457.0,4.06992793]
[1751293276546,0.55,2457.4,2457.2,4.06967268]
[1751293276708,0.55,2457.4,2456.9,0.827]
[1751293276709,0.55,2457.4,2457.3,4.06950718]
[1751293276904,0.55,2457.4,2456.9,4.89706702]
[1751293277140,0.55,2457.4,2456.6,4.07055398]
[1751293277141,0.55,2457.2,2456.7,4.75]
[1751293277470,7.084,2457.1,2456.7,4.07050107]
[1751293277763,7.084,2457.1,2456.6,0.7801]
[1751293277764,7.084,2457.1,2456.8,4.07033539]
[1751293277949,7.084,2457.1,2457.0,4.07000407]
[1751293278110,7.084,2457.1,2456.9,4.07007805]
[1751293278440,7.084,2457.1,2457.0,4.07000407]
[1751293278940,2.9152,2457.5,2457.3,4.06942467]
[1751293279141,7.083,2457.4,2457.3,4.06942467]
[1751293279345,2.006,2457.5,2457.2,4.86475835]
[1751293279642,2.006,2457.5,2457.2,0.7952]
[1751293279834,0.55,2457.4,2457.0,4.06991853]
[1751293280033,0.55,2457.4,2457.1,4.06981028]
[1751293280235,2.006,2457.5,2456.9,5.553]
[1751293280437,2.006,2457.5,2457.2,4.0695693]
[1751293280618,2.006,2457.5,2457.1,4.06976303]
[1751293281244,2.006,2457.5,2457.2,4.06962906]
[1751293281557,2.006,2457.5,2457.2,4.06960511]
[1751293282062,3.32169272,2457.5,2457.1,4.06975912]
[1751293282230,0.2032,2457.3,2457.2,4.06965569]
[1751293282764,0.02,2457.5,2457.4,4.06934158]
[1751293284018,0.2232,2457.5,2457.3,4.82514101]
[1751293284238,0.2232,2457.5,2457.4,4.06934158]
[1751293284617,0.2232,2457.5,2457.3,0.7557]
[1751293284820,0.2232,2457.5,2457.4,4.06934158]
[1751293285520,0.02,2457.5,2457.4,8.81934158]
[1751293285715,0.02,2457.5,2457.4,9.02254158]
[1751293286564,0.02,2457.5,2457.4,8.81934158]
[1751293286731,0.02,2457.5,2457.4,4.75]
[1751293286918,0.02,2457.5,2457.4,8.81934158]
[1751293288061,0.02,2457.5,2457.4,19.58124158]
[1751293289932,0.02,2458.5,2457.5,24.920922]
[1751293290129,0.02,2458.5,2458.4,4.8956863]
[1751293291225,0.02,2458.5,2458.4,14.8956863]
[1751293291537,0.02,2458.5,2458.4,21.9686863]
[1751293291970,0.02,2458.5,2458.4,43.46285426]
[1751293292691,0.02,2458.5,2458.4,9.6456863]
[1751293293183,0.02,2458.5,2458.4,19.6456863]
[1751293294352,0.02,2458.5,2458.4,14.8956863]
[1751293294559,0.02,2458.5,2458.4,4.8956863]
[1751293295897,0.02,2458.5,2458.3,4.06777603]
[1751293296191,0.02,2458.5,2458.4,4.0676863]
[1751293296582,0.02,2458.5,2458.3,4.067781]
[1751293296768,0.02,2458.5,2458.4,4.0676863]
[1751293296971,0.02,2458.5,2458.1,10.0]
[1751293296972,0.02,2458.5,2458.2,4.06795147]
[1751293297298,0.02,2458.5,2458.4,4.0676863]
[1751293298502,0.02,2458.5,2458.4,4.8214863]
[1751293299099,0.02,2458.5,2458.0,0.7734]
[1751293299282,0.55,2458.3,2457.7,0.7734]
[1751293299486,0.55,2458.3,2457.2,4.75]
[1751293299487,10.0,2458.0,2457.6,4.06898237]
[1751293299689,1.40682697,2457.9,2457.5,4.06914442]
[1751293299871,1.61002697,2457.9,2457.5,4.06914442]
[1751293300067,1.61002697,2457.9,2457.4,0.2032]
[1751293300269,1.61002697,2457.9,2457.6,4.06893339]
[1751293300469,1.61002697,2457.9,2457.8,4.0686793]
[1751293300670,0.2032,2457.9,2457.7,4.0687577]
[1751293301385,0.2032,2457.9,2457.8,4.0686793]
[1751293301869,0.2032,2457.9,2457.4,0.2032]
[1751293302070,0.2032,2457.9,2457.6,4.06893242]
[1751293302400,0.2032,2457.9,2457.7,4.0688446]
[1751293302581,0.2032,2457.9,2457.6,4.06891942]
[1751293302781,0.2032,2457.9,2457.7,4.06883784]
[1751293302979,0.2032,2457.9,2457.6,4.06894829]
[1751293303501,4.27173321,2457.9,2457.5,4.06916012]
[1751293303706,5.10574162,2457.9,2457.5,4.06916012]
[1751293303869,4.06872232,2457.8,2457.4,0.2032]
[1751293304074,1.03720841,2457.9,2457.4,0.2032]
[1751293304075,0.55,2457.7,2457.4,4.06928551]
[1751293304271,0.2032,2457.5,2457.4,4.06934158]
[1751293304470,0.2032,2457.5,2457.3,4.06942833]
[1751293304671,0.2032,2457.5,2457.3,4.06948826]
[1751293304989,0.2032,2457.5,2457.2,4.06958372]
[1751293305186,0.2032,2457.5,2457.3,4.06950391]
[1751293305391,0.2032,2457.5,2457.0,5.06203037]
[1751293305570,0.2032,2457.5,2457.2,4.06966651]
[1751293305769,0.763,2457.7,2457.4,4.06934158]
[1751293306009,0.2032,2457.6,2457.4,4.06934158]
[1751293306582,0.2032,2457.6,2457.3,4.06948322]
[1751293306905,4.77002237,2457.6,2457.1,4.06976338]
[1751293307106,4.06935942,2457.4,2457.0,4.27312824]
[1751293307272,0.2032,2457.3,2457.0,4.06992824]
[1751293307804,0.2032,2457.3,2456.8,0.2032]
[1751293308011,0.2032,2457.4,2457.2,4.06952034]
[1751293308178,0.2032,2457.4,2457.3,4.06950718]
[1751293308378,0.2032,2457.4,2457.2,4.06957051]
[1751293308687,0.2032,2457.4,2457.3,4.06950718]
[1751293308895,0.2032,2457.4,2457.2,4.06957051]
[1751293308896,0.763,2457.7,2457.2,4.06963282]
[1751293309085,0.2032,2457.6,2457.4,4.06924587]
[1751293309411,0.2032,2457.6,2457.5,4.06917599]
[1751293310603,0.2032,2457.7,2457.3,0.9775]
[1751293310806,0.2032,2457.7,2457.4,4.06934158]
[1751293310979,0.2032,2457.7,2457.6,4.06901041]
[1751293312786,0.2032,2457.7,2457.4,4.06927427]
[1751293313019,0.2032,2457.7,2457.5,4.06916412]
[1751293313188,4.27209504,2457.7,2457.3,0.9775]
[1751293313386,1.335,2457.6,2457.0,0.8326]
[1751293313600,0.2032,2457.4,2457.3,4.06938028]
[1751293314279,0.2032,2457.4,2457.2,4.06957056]
[1751293314706,0.2032,2457.4,2457.1,4.06976712]
[1751293314916,0.2032,2457.4,2457.0,4.28318049]
[1751293315081,0.8097,2457.9,2457.2,0.7783]
[1751293315402,0.2032,2457.9,2457.8,4.0686793]
[1751293315911,0.2032,2457.9,2457.6,4.06893654]
[1751293316078,0.2032,2457.9,2457.6,4.06894797]
[1751293316415,0.2032,2457.9,2457.5,4.9532]
[1751293316577,0.2032,2457.9,2457.7,4.06880537]
[1751293317009,0.2032,2457.9,2457.8,4.8901793]
[1751293317207,0.7627,2458.6,2457.8,4.8901793]
[1751293317208,0.2032,2458.3,2457.9,4.06841362]
[1751293317407,4.27112625,2458.3,2457.8,5.09329583]
[1751293317704,0.2032,2458.2,2457.8,4.06859583]
[1751293317909,1.63031263,2458.2,2457.8,4.06863507]
[1751293318510,1.63031263,2458.2,2457.9,4.06850862]
[1751293318691,1.63031263,2458.2,2458.0,4.06833332]
[1751293318882,0.2032,2458.2,2458.0,4.06833332]
[1751293319082,0.2032,2458.2,2458.0,4.06833797]
[1751293319280,0.2032,2458.2,2457.9,4.06842596]
[1751293319484,0.2032,2458.2,2458.0,4.06832806]
[1751293319679,1.975,2458.4,2458.3,4.06780481]
[1751293319878,9.035,2458.4,2458.3,4.06780481]
[1751293320077,0.02,2458.5,2458.4,4.0676863]
[1751293320481,0.02,2458.5,2458.2,4.06787559]
[1751293320694,0.02,2458.5,2458.3,4.06777005]
[1751293320890,0.02,2458.5,2458.2,4.06785488]
[1751293321093,0.02,2458.5,2458.2,4.06790613]
[1751293321524,0.02,2458.5,2458.1,4.06809832]
[1751293321725,0.2032,2458.4,2458.0,4.06829081]
[1751293322015,0.2032,2458.4,2458.2,4.06800639]
[1751293322220,0.2032,2458.4,2458.3,4.06785176]
[1751293322712,0.02,2458.5,2458.4,4.0676863]
[1751293323720,0.02,2458.5,2458.3,0.2032]
[1751293324018,0.2032,2458.4,2458.3,4.06785176]
[1751293324785,0.02,2458.5,2458.4,4.8468863]
[1751293326097,0.02,2458.5,2458.4,4.0676863]
[1751293326995,0.02,2458.5,2458.4,4.2708863]
[1751293327515,0.02,2458.5,2458.4,4.9532]
[1751293327717,0.02,2458.5,2458.4,8.8176863]
[1751293328434,0.02,2458.5,2458.4,4.75]
[1751293329331,0.02,2458.5,2458.4,8.8176863]
[1751293329486,0.02,2458.5,2458.4,4.75]
[1751293330914,0.50733125,2458.5,2458.4,4.75]
[1751293331120,0.17333125,2458.6,2458.4,4.75]
[1751293331319,0.55,2458.5,2457.6,0.7761]
[1751293331622,4.61807699,2458.2,2457.7,4.06876379]
[1751293331786,4.61807699,2458.2,2457.5,0.01]
[1751293331787,4.61802995,2458.2,2457.8,4.0685432]
[1751293331982,4.61802995,2458.2,2457.5,0.89190839]
[1751293331983,0.55,2458.1,2457.5,0.89190839]
[1751293332211,4.6183199,2458.1,2457.6,4.06897819]
[1751293332520,4.618108,2458.2,2457.7,4.06883556]
[1751293332698,4.06828646,2458.1,2457.6,4.06892452]
[1751293333019,5.4867523,2458.2,2457.7,4.06874091]
[1751293333215,1.41860289,2458.2,2457.7,4.06874091]
[1751293333386,5.48671968,2458.2,2457.7,4.06874091]
[1751293333787,1.41860289,2458.2,2457.8,4.06857654]
[1751293334022,0.7658,2458.1,2457.7,4.06874796]
[1751293334421,0.7658,2458.1,2457.5,0.01]
[1751293334603,0.7658,2458.1,2457.8,4.06852442]
[1751293334798,0.7658,2458.1,2457.5,0.01]
[1751293335005,4.83407056,2458.1,2457.6,4.06901041]
[1751293335512,4.83407056,2458.1,2457.5,0.01]
[1751293335513,4.06859397,2457.9,2457.5,0.01]
[1751293335710,4.06875562,2457.8,2457.5,0.01]
[1751293336222,4.61858627,2457.9,2457.5,0.01]
[1751293336428,7.601,2457.9,2457.5,0.01]
[1751293336630,7.601,2457.9,2457.6,4.06890596]
[1751293337308,7.601,2457.9,2457.5,4.07907667]
[1751293337505,0.55,2458.0,2457.6,4.06888441]
[1751293337706,0.2032,2457.8,2457.5,0.01]
[1751293338018,4.27188633,2457.8,2457.5,0.01]
[1751293338208,0.2032,2457.6,2457.5,4.07915735]
[1751293338409,0.55,2457.9,2457.6,4.06894023]
[1751293338610,0.2032,2457.7,2457.6,4.06894023]
[1751293339532,0.7658,2458.1,2457.8,4.06861678]
[1751293339730,0.2032,2458.0,2457.9,4.06844222]
[1751293339912,0.2032,2458.0,2457.6,1.28980954]
[1751293340113,0.2032,2458.0,2457.5,4.07910263]
[1751293340114,4.61844,2458.0,2457.5,4.07910263]
[1751293340334,0.55,2457.8,2457.5,0.01]
[1751293340535,0.2032,2457.6,2457.5,0.01]
[1751293341516,4.82221041,2457.6,2457.5,0.01]
[1751293341717,0.7532,2457.6,2457.5,0.01]
[1751293341916,12.63831041,2457.6,2457.5,0.01]
[1751293342123,24.30902955,2457.6,2457.5,0.01]
[1751293342647,26.27602955,2457.6,2457.5,0.01]
[1751293345549,19.22802955,2457.6,2457.5,0.01]
[1751293345736,26.27602955,2457.6,2457.5,0.01]
[1751293346558,16.27602955,2457.6,2457.5,0.01]
[1751293346847,25.72602955,2457.6,2457.5,0.01]
[1751293347155,25.72502955,2457.6,2457.5,0.01]
[1751293347319,12.64201914,2457.6,2457.5,0.01]
[1751293347520,9.9853,2457.6,2457.5,0.01]
[1751293348048,10.5353,2457.6,2457.5,0.01]
[1751293348253,9.9853,2457.6,2457.5,0.01]
[1751293348452,3.4883,2457.6,2457.5,0.01]
[1751293348753,9.7672,2457.6,2457.5,0.01]
[1751293348954,14.88828041,2457.6,2457.5,0.01]
[1751293349536,10.81927,2457.6,2457.5,0.01]
[1751293349921,9.7672,2457.6,2457.5,0.01]
[1751293351135,9.7652,2457.6,2457.5,0.01]
[1751293351533,13.83421041,2457.6,2457.5,0.01]
[1751293351934,9.7652,2457.6,2457.5,0.01]
[1751293352136,13.83421041,2457.6,2457.5,0.01]
[1751293352452,9.7652,2457.6,2457.5,0.01]
[1751293353028,13.83421041,2457.6,2457.5,0.01]
[1751293353251,13.83421041,2457.6,2457.5,4.07917599]
[1751293353252,9.7652,2457.6,2457.5,4.07917599]
[1751293353560,0.2032,2457.6,2457.5,4.07917599]
[1751293353737,7.2472,2457.6,2457.5,4.89402694]
[1751293353925,7.044,2457.6,2457.5,9.64400854]
[1751293354125,0.2032,2457.8,2457.7,4.06884398]
[1751293354353,9.2142,2457.8,2457.5,9.64400854]
[1751293354562,2.1702,2457.8,2457.5,5.57485095]
[1751293354758,7.043,2457.7,2457.5,4.76]
[1751293354956,0.2032,2457.6,2457.5,8.82917599]
[1751293355442,0.2032,2458.1,2458.0,4.06818812]
[1751293355626,7.2462,2458.1,2458.0,4.06818812]
[1751293356040,7.2462,2458.1,2457.9,4.06843778]
[1751293357668,7.043,2458.1,2457.8,4.75]
[1751293357966,0.7532,2457.9,2457.8,4.75]
[1751293358548,0.7532,2457.9,2457.8,8.8186793]
[1751293359064,0.2032,2457.9,2457.8,8.8186793]
[1751293359366,7.04,2458.0,2457.8,4.75]
[1751293359539,7.2432,2458.0,2457.8,4.06856876]
[1751293359739,7.2432,2458.0,2457.9,4.06851377]
[1751293360955,0.02,2458.4,2457.9,5.65663125]
[1751293361131,0.02,2458.4,2458.3,4.06785176]
[1751293361344,0.02,2458.4,2458.0,4.75]
[1751293361558,0.2032,2458.3,2458.1,4.06808014]
[1751293361943,0.2032,2458.3,2458.2,4.06801724]
[1751293362868,0.2032,2458.3,2458.1,4.06816571]
[1751293363269,0.2032,2458.3,2458.0,8.81830266]
[1751293363270,7.2402,2458.3,2458.0,8.81830266]
[1751293363439,7.2402,2458.3,2457.9,1.58811748]
[1751293363440,0.2032,2458.0,2457.7,5.5392]
[1751293363766,0.2032,2458.0,2457.8,4.06856676]
[1751293363967,0.2032,2458.0,2457.9,4.06851377]
[1751293365039,0.2032,2458.0,2457.8,4.06859871]
[1751293365638,0.2032,2458.0,2457.7,9.60794939]
[1751293365837,0.2032,2458.0,2457.7,8.81877196]
[1751293366362,4.61810842,2458.2,2457.7,8.81874967]
[1751293366668,0.2032,2457.9,2457.6,4.06896687]
[1751293366840,0.2032,2457.9,2457.7,4.06883258]
[1751293367172,0.2032,2457.9,2457.6,4.06885804]
[1751293367367,0.2032,2457.9,2457.6,4.06901041]
[1751293367567,0.2032,2457.9,2457.7,4.06880821]
[1751293367874,7.2382,2457.9,2457.5,0.7844]
[1751293368076,0.2032,2457.6,2457.5,0.01]
[1751293368379,0.2032,2457.6,2457.5,4.07917599]
[1751293368737,0.2032,2457.6,2457.5,0.01]